Cogmind - Beta 15 @@@ ROGUE MODE // 2025.07.29 @ 21:20:12 Player: Jiber Result: Destroyed self with Mini Grenade Launcher Performance ------------- Evolutions (1) 500 Regions Visited (3) 600 Robots Destroyed (46) 230 Value Destroyed (801) 801 Prototype IDs (2) 40 Alien Tech Used (0) 0 Bonus (19) 19 TOTAL SCORE: 2190 Bonus ------- Follower Combat Kills 27 Friendly Fire -8 Cogmind --------- Core Integrity 0/400 Matter 140/300 Energy 97/125 System Corruption 5% Temperature Cool (0) Movement Rolling (105) Ox1 Location -9/Mines Parts ------- > --- POWER (1) -------- Light Ion Engine > --- PROPULSION (3) --- Wheel Compact Wheel > --- UTILITY (2) ------ Large Storage Unit > --- WEAPON (3) ------- Particle Cannon Advanced Beam Cannon Mini Grenade Launcher > --- INVENTORY (15) --- Improved Treads Aluminum Leg Medium Storage Unit Sensor Array Signal Interpreter Improved Terrain Scanner Improved Targeting Computer Peak State ------------ > --- POWER ------------ Cooled Ion Engine > --- PROPULSION ------- Wheel Compact Wheel Compact Wheel > --- UTILITY ---------- Large Storage Unit Hardened Light Armor Plating > --- WEAPON ----------- Advanced Beam Cannon Advanced Beam Cannon Light Assault Rifle > --- INVENTORY -------- Light Ion Engine Light Ion Engine Improved Treads Improved Treads Wheel Wheel Medium Storage Unit Improved Terrain Scanner Propulsion Shielding Small Laser Light Assault Rifle [Rating: 17] Favorites ----------- Power Light Ion Engine Engine Light Ion Engine Propulsion Wheel Treads Improved Treads Leg Aluminum Leg Wheel Wheel Utility Large Storage Unit Storage Large Storage Unit Protection Hardened Light Armor Plating Weapon Advanced Beam Cannon Energy Gun Small Laser Energy Cannon Advanced Beam Cannon Ballistic Gun Light Assault Rifle Launcher Mini Grenade Launcher Special Weapon Mining Laser Build | -11 -10 -9 -9 ------- Run | Yrd Mat Mat Min Slots Evolved 2 | . . 2 . Power . | . . . . Propulsion 1 | . . 1 . Utility . | . . . . Weapon 1 | . . 1 . Parts Attached 35 | 5 3 20 7 Power 4 | 1 1 2 . Engine 4 | 1 1 2 . Core . | . . . . Reactor . | . . . . Propulsion 14 | 2 1 8 3 Treads 4 | . . 3 1 Leg 1 | . . 1 . Wheel 9 | 2 1 4 2 Hover . | . . . . Flight . | . . . . Utility 5 | . . 5 . Device . | . . . . Storage 2 | . . 2 . Processor . | . . . . Hackware . | . . . . Protection 3 | . . 3 . Artifact . | . . . . Weapon 12 | 2 1 5 4 Energy Gun 2 | 1 . 1 . Energy Cannon 5 | . . 3 2 Ballistic Gun 3 | 1 1 1 . Ballistic Cannon . | . . . . Launcher 1 | . . . 1 Special Weapon 1 | . . . 1 Impact Weapon . | . . . . Slashing Weapon . | . . . . Piercing Weapon . | . . . . Special Melee Weapon . | . . . . Unidentified Prototypes 2 | . . 2 . Parts Lost 20 | . 3 7 10 Power 3 | . 1 1 1 Propulsion 7 | . 1 2 4 Utility 3 | . . 1 2 Weapon 7 | . 1 3 3 Highest Loss Streak 9 | . 3 5 9 To Critical Strikes . | . . . . Average Backups 9 | 1 4 10 10 Power 1 | . . 1 . Propulsion 2 | . 2 3 2 Utility 3 | . 2 3 5 Weapon 1 | . . 1 1 Tool/Special . | . . . . Unused Backups 6 | . . 2 4 Power . | . . . . Propulsion . | . . . . Utility 5 | . . 1 4 Weapon 1 | . . 1 . Tool/Special . | . . . . Average Slot Usage (%) 89 | . 66 94 85 Engine 10 | . 12 10 11 Treads 8 | . . 4 19 Wheel 21 | . 26 27 7 Storage 9 | . . 10 11 Protection 7 | . . 9 5 Energy Gun 3 | . 7 5 . Energy Cannon 13 | . . 13 16 Ballistic Gun 11 | . 19 12 6 Launcher 1 | . . . 3 Peak Build Rating 17 | 5 5 17 16 Average Rating 12 | 4 4 14 12 On Entrance 6 | . 5 5 16 Naked Turns . | . . . . Heaviest Build 42 | 6 6 42 35 Greatest Support 66 | 20 26 66 63 Greatest Overweight (x) 4 | . . 4 1 Average Overweight (x) . | . . . . Largest Inventory Capacity 15 | 5 5 15 15 Average Capacity 12 | 5 5 13 15 Most Carried 14 | 5 5 14 13 Average Carried 9 | 2 4 10 10 Final Capacity 15 | 5 5 15 15 Final Carried 12 | 3 5 12 7 Class Distribution -------------------- 54% | Scavenger-Tank 22% | Mutant 10% | Tank 5% | Gunner 4% | Scavenger-Gunner Dominant Class ---------------- Mutant | -10/Materials Scavenger-Tank | -9/Materials Scavenger-Tank | -9/Mines Resources | -11 -10 -9 -9 ----------- Run | Yrd Mat Mat Min Matter Collected 859 | 264 36 471 88 Remotely . | . . . . Salvage Created 1391 | 115 111 985 180 Parts 91 | 16 9 59 7 Haulers Intercepted 4 | . . 4 . Recyclers Shooed 4 | . 1 2 1 Parts Field Recycled . | . . . . Retrieved Matter . | . . . . Parts Self-Destructed . | . . . . Prevented . | . . . . Kills | -11 -10 -9 -9 ------- Run | Yrd Mat Mat Min Combat Hostiles Destroyed 30 | . 3 17 10 Guns 13 | . 3 10 . Cannons 9 | . . 7 2 AOE 8 | . . . 8 Classes Destroyed 12 | 1 2 7 2 Worker 1 | . . 1 . Builder 1 | . . 1 . Tunneler 6 | 5 . 1 . Hauler 4 | . . 4 . Recycler 3 | . 1 1 1 Watcher 4 | . . 4 . Swarmer 14 | . 3 7 4 Grunt 9 | . . 8 1 Brawler 1 | . . 1 . Sentry 1 | . . 1 . Demolisher 2 | . . . 2 Assembled 3 | . . . 3 Best Kill Streak 6 | 4 4 5 6 Combat Bots Only 5 | . 3 5 5 Max Kills in Single Turn 3 | 1 1 2 3 Gunslinging . | . . . . Exploded 3 | . . . 3 Melee . | . . . . Uniques/NPCs Destroyed . | . . . . Combat | -11 -10 -9 -9 -------- Run | Yrd Mat Mat Min Hostile Shots Fired 210 | . 42 113 55 Missed 45 | . 11 21 13 Hits 165 | . 31 92 42 Melee 7 | . . 3 4 Projectile 158 | . 31 89 38 AOE 24 | . . . 24 Critical Strikes 2 | . . 2 . Damage Taken 2421 | . 238 986 1197 Core 463 | . 43 199 221 Absorbed by Shields . | . . . . Redirected to Shielding 54 | . . . 54 Regen/Repaired (Parts) 37 | . . 37 . Core Remaining (%) 91 | 100 82 . . Volleys Fired 125 | 14 16 76 19 Largest 3 | 2 2 3 3 Hottest 166 | 60 60 156 166 Shots Fired 312 | 28 29 212 43 Gun 200 | 28 29 136 7 Cannon 100 | . . 76 24 Launcher 8 | . . . 8 Special 4 | . . . 4 Kinetic 133 | 14 18 94 7 Thermal 146 | . . 118 28 Explosive 8 | . . . 8 Electromagnetic 25 | 14 11 . . Robot Hit Streak 8 | 5 7 8 3 Robot Miss Streak 7 | 1 7 7 7 Penetration Max . | . . . . Secondary Targets 1 | . 1 . . Max Gunslinging Chain 1 | . 1 . . Shots Hit Robots 138 | 17 15 97 9 Core Hits 72 | 9 8 41 14 Critical Kills . | . . . . Critical Parts Destroyed . | . . . . Critical Strikes . | . . . . Melee Attacks . | . . . . Impact . | . . . . Slashing . | . . . . Piercing . | . . . . Sneak Attacks . | . . . . Combat Hostiles . | . . . . Follow-up Attacks . | . . . . Damage Inflicted 2209 | 200 126 1374 509 Guns 1031 | 200 126 678 27 Cannons 860 | . . 696 164 Explosions 318 | . . . 318 Melee . | . . . . Ramming . | . . . . Kinetic 531 | 56 85 363 27 Thermal 1175 | . . 1011 164 Explosive 318 | . . . 318 Electromagnetic 185 | 144 41 . . Impact . | . . . . Slashing . | . . . . Piercing . | . . . . Highest Corruption 5 | . . 5 5 Average Corruption 5 | . . 5 5 Corruption Purged . | . . . . Corruption Blocked . | . . . . Effects 18 | . . 5 13 Message Errors 3 | . . . 3 Matter Fused 4 | . . 1 3 Heat Flow Errors 3 | . . 2 1 Energy Discharges 3 | . . 1 2 Parts Rejected 1 | . . . 1 Parts Fused 1 | . . . 1 Data Loss (major) 1 | . . . 1 Alerts 1 | . . . 1 Weapon Failures 1 | . . 1 . Overload Shots . | . . . . Overflow Damage 52 | . . 42 10 Projectiles 42 | . . 42 . Explosions 10 | . . . 10 Melee . | . . . . Knockbacks . | . . . . Impact . | . . . . Kinetic . | . . . . Secondary . | . . . . Self-Inflicted Damage 55 | . . . 55 Shots 2 | . . . 2 Rammed . | . . . . Targets Rammed . | . . . . Kicked . | . . . . Crushed . | . . . . Highest Temperature 612 | 40 60 612 364 Average Temperature 149 | 22 28 183 100 Received Heat Transfer 262 | . . 222 40 Effects 28 | . . 27 1 Shutdowns 3 | . . 3 . Energy Bleed 4 | . . 4 . Interference 5 | . . 5 . Matter Decay 4 | . . 3 1 Short Circuit 2 | . . 2 . Damage (minor) 1 | . . 1 . Damage (major) 8 | . . 8 . Damage (core) 1 | . . 1 . Siege Activations . | . . . . Martial Activations . | . . . . Shielding Activations . | . . . . Robots Disrupted . | . . . . Combat Hostiles . | . . . . Robots Corrupted . | . . . . Combat Hostiles . | . . . . Parts Fried . | . . . . Impact Corruptions . | . . . . Robots Melted . | . . . . Combat Hostiles . | . . . . Parts Melted 1 | . . . 1 Heat Transferred 2279 | . . 1983 296 Parts Sabotaged . | . . . . Parts Stolen . | . . . . Parts Stripped . | . . . . Power Chain Reactions . | . . . . Alert | -11 -10 -9 -9 ------- Run | Yrd Mat Mat Min Maximum Alert Level . | . . . . Low Security (%) 100 | 100 100 100 100 Level 1 . | . . . . Level 2 . | . . . . Level 3 . | . . . . Level 4 . | . . . . Level 5 . | . . . . High Security . | . . . . Max Security . | . . . . Peak Influence 174 | 10 55 174 137 Initial 53 | . . 10 53 Average 41 | 2 19 47 43 Influence Increases 919 | 25 75 527 292 Destroy 0b10 Robot/C 560 | . 60 340 160 Destroy 0b10 Robot/NC 95 | 25 5 60 5 Destroy Leader 116 | . 10 66 40 Allied During Kill 3 | . . . 3 Disable Machine 45 | . . 30 15 Destroy Structure 55 | . . 1 54 Lose Combat Pursuer 45 | . . 30 15 Influence Decreases 768 | 25 50 414 279 Entered New Map 100 | . . 15 85 Time Decay 548 | 25 30 329 164 Lost Part 100 | . 20 70 10 Lost Ally 20 | . . . 20 Squads Dispatched 1 | . . 1 . Investigation 1 | . . 1 . Extermination . | . . . . Reinforcement . | . . . . Assault . | . . . . Garrison . | . . . . Intercept . | . . . . Searches Triggered . | . . . . Construction Impeded . | . . . . Haulers Reinforced . | . . . . Active Scanning Responses . | . . . . Cargo Convoy Interrupts . | . . . . Stealth | -11 -10 -9 -9 --------- Run | Yrd Mat Mat Min Distress Signals 3 | . . 2 1 Communications Jammed . | . . . . Distress Signals . | . . . . Times Spotted 62 | . 6 26 30 Peak Tracking Total 18 | . 4 7 18 Tactical Retreats 5 | . . 2 3 Traps | -11 -10 -9 -9 ------- Run | Yrd Mat Mat Min Traps Triggered . | . . . . Indirectly . | . . . . Trap Hack Attempts . | . . . . Triggered . | . . . . Disarmed . | . . . . Reprogrammed . | . . . . Reused . | . . . . Traps Extracted . | . . . . Installed . | . . . . Triggered . | . . . . Machines | -11 -10 -9 -9 ---------- Run | Yrd Mat Mat Min Machines Disabled 3 | . . 2 1 Max in Single Turn 1 | . . 1 1 Machines Repaired . | . . . . Machines Dismantled . | . . . . Machines Sabotaged . | . . . . Overloaded Fab Kills . | . . . . Hacking | -11 -10 -9 -9 --------- Run | Yrd Mat Mat Min Machines Accessed 2 | . . 2 . Terminals 1 | . . 1 . Fabricators . | . . . . Repair Stations 1 | . . 1 . Recycling Units . | . . . . Scanalyzers . | . . . . Garrison Access . | . . . . Total Hacks 11 | . . 11 . Successful 4 | . . 4 . Failed 7 | . . 7 . Catastrophic . | . . . . Database Lockouts . | . . . . Manual . | . . . . Terminals 3 | . . 3 . Fabricators . | . . . . Repair Stations 8 | . . 8 . Recycling Units . | . . . . Scanalyzers . | . . . . Garrison Access . | . . . . Terminal Hacks 2 | . . 2 . Record 1 | . . 1 . Alert Level 1 | . . 1 . Fabricator Hacks . | . . . . Repair Station Hacks 2 | . . 2 . Scan Component 1 | . . 1 . Repair 1 | . . 1 . Recycling Unit Hacks . | . . . . Scanalyzer . | . . . . Garrison Access Hacks . | . . . . Unauthorized Hacks . | . . . . Terminals . | . . . . Fabricators . | . . . . Repair Stations . | . . . . Recycling Units . | . . . . Scanalyzers . | . . . . Garrison Access . | . . . . Data Cores Recovered . | . . . . Used . | . . . . Hacking Detections 2 | . . 2 . Full Trace Events 1 | . . 1 . Feedback Events . | . . . . Feedback Blocked . | . . . . Robot Schematics Acquired . | . . . . Robots Built . | . . . . Authchips . | . . . . Time . | . . . . Total Robot Build Rating . | . . . . Part Schematics Acquired . | . . . . Parts Built . | . . . . Authchips . | . . . . Time . | . . . . Total Part Build Rating . | . . . . Parts Repaired 1 | . . 1 . Time 51 | . . 51 . Parts Recycled . | . . . . Recycled Matter . | . . . . Retrieved Matter . | . . . . Retrieved Components . | . . . . Parts Scanalyzed . | . . . . Part Schematics Acquired . | . . . . Parts Damaged . | . . . . Bothacking | -11 -10 -9 -9 ------------ Run | Yrd Mat Mat Min Used RIF Installer . | . . . . Robots Hacked . | . . . . Non-combat . | . . . . Combat . | . . . . Robot Hacks Applied . | . . . . Relay Couplers Released . | . . . . Fabnet Peak Effective % . | . . . . Robots Rewired . | . . . . Allies Hacked . | . . . . Hacks Repelled . | . . . . Allies | -11 -10 -9 -9 -------- Run | Yrd Mat Mat Min Total Allies 1 | . . . 1 Largest Group 1 | . . . 1 Highest-Rated Group 31 | . . . 31 Highest-Rated Ally 31 | . . . 31 Total Orders . | . . . . Ally Attacks 10 | . . . 10 Total Damage 125 | . . . 125 Kills 2 | . . . 2 Allies Corrupted . | . . . . Allies Melted . | . . . . Intel | -11 -10 -9 -9 ------- Run | Yrd Mat Mat Min Active Infowar (turns) . | . . . . Robot Analysis Total . | . . . . Derelict Logs Recovered 1 | . . . 1 Drone Launches . | . . . . Drone Recoveries . | . . . . Exploration | -11 -10 -9 -9 ------------- Run | Yrd Mat Mat Min Turns Passed 1819 | 118 149 1021 531 Spaces Moved 1128 | 86 119 600 323 Core 10 | 10 . . . Treads 257 | . . 68 189 Legs 3 | . . 3 . Wheels 858 | 76 119 529 134 Hover . | . . . . Flight . | . . . . Fastest Speed 50 | 50 80 86 86 Average Speed 107 | 76 84 100 135 Slowest Speed 330 | 80 90 330 240 Overloaded Moves . | . . . . Propulsion Burnouts . | . . . . Robots Hopped . | . . . . Potential Cave-ins . | . . . . Cave-ins Triggered . | . . . . Exploration Rate (%) 35 | 3 28 37 73 Regions Visited 3 Branch Regions 1 Pre-discovered Areas . | . . . . Known Exits Taken . | . . . . Unknown Exits Taken 3 | 1 1 1 . Scrap Searched 2 | . . . 2 Spaces Dug 1 | . . . 1 Terrain Destroyed 80 | . . . 80 Melee . | . . . . Projectile 11 | . . . 11 AOE 69 | . . . 69 Terrain Rammed . | . . . . Walls Destroyed . | . . . . Machines Disabled . | . . . . Actions | -11 -10 -9 -9 --------- Run | Yrd Mat Mat Min Total 1493 | 112 140 867 374 Wait 151 | . 1 134 16 Move 1125 | 85 118 599 323 Hop . | . . . . Pick Up 39 | 8 2 25 4 Fast Attach 3 | . 3 . . Attach 26 | 5 . 12 9 Detach . | . . . . Swap 17 | . . 14 3 Drop 7 | . . 7 . Fire 125 | 14 16 76 19 Melee . | . . . . Ram . | . . . . Kick . | . . . . Crush . | . . . . Escape Stasis . | . . . . Rewire . | . . . . Trap . | . . . . Miscellaneous . | . . . . Route ------- -11/Scrapyard -10/Materials (discovered 2 exits: *Mat / [*Min]) -9/Materials -9/Mines (discovered 1 exit: [*Mat]) History --------- Turn | Location | Event 21 | -11/Scrapyard | Discovered new exit (range 15) 119 | -11/Scrapyard | Entered Materials 205 | -10/Materials | Discovered new exit (range 11) 230 | -10/Materials | Lost 3 parts (1p1n1w) 233 | -10/Materials | Discovered new exit (range 15) 268 | -10/Materials | Entered another Materials area 268 | -9/Materials | Evolved 2 slots: Propulsion x1, Weapon x1 662 | -9/Materials | Build established: Scavenger-Tank 681 | -9/Materials | Repaired Cld. Ion Engine 1198 | -9/Materials | Lost 5 parts (1p1n1u2w) 1242 | -9/Materials | Discovered new exit (range 16) 1289 | -9/Materials | Entered Mines 1365 | -9/Mines | Learned Materials terminal intel 1376 | -9/Mines | Received a Mining Laser from a helpful Derelict 1511 | -9/Mines | Assembled infested the area 1513 | -9/Mines | Core integrity fell below 50% 1609 | -9/Mines | Core integrity fell below 20% 1616 | -9/Mines | Lost 9 parts (1p3n2u3w) 1819 | -9/Mines | Discovered new exit (range 8) 1820 | -9/Mines | Destroyed self with Mini Grenade Launcher Last Messages --------------- 01722_ System corrupted: Energy discharge (-47). 01723_ T-07 Excavator is excavating. 01734_ Wheel destroyed. 01736_ Destroyed Flight Unit. 01736_ S-10 Pest destroyed. 01736_ Destroyed Flight Unit. 01736_ S-10 Pest destroyed. 01739_ System corrupted: Energy discharge (-27). 01740_ Acquired 5 matter. 01742_ Acquired 10 matter. 01743_ Acquired 7 matter. 01744_ T-07 Excavator is excavating. 01748_ The unstable cave ceiling collapses. 01749_ T-07 Excavator is excavating. 01819_ EXIT=FOUND 01820_ C-30 ARC bursts open, deploying its payload. 01820_ S-10 Pest unfolds itself. 01820_ Laser Drill disabled. 01820_ S-10 Pest destroyed. Map ----- +----------------------------------------------------+ | ???????????????????????????????? | | ???????????????????????????????? | | ???????????????????????????????? | | ???????????????????????????????? | | ???????????????????????????????? | | ???????????????????????????????? | | ???????????????????????????????? | | ???????????????????????????????? | | ???????????????????????????????? | | ???????????????????????????????? | | #######????????????????? ??????? | | #????????????????? ??????? | | #????????????????? ??????? | | #?????????????????? ??????? | | #??????????????????? ??????? | | ##??????????????????? ??????? | | # #???????????????????? ??????? | | ?? #??????????????????# #?????? | | ??? ???????????????????# #?????? | | ???????????##??????# #?????? | | #???????? ??????# #?????? | | ???##????# ??????# #?????? | | ### ???# ??????# #?????? | | ??# ??????# #?????? | | ? ## ####### ##????? | | ?? @#????? | | ???? ?# ####### #????? | | ??????## ### #?????# ????? | | ???????#####????# #?????# #????? | | ???????????###### #????? ????? | | ??????????## ##???? ????? | | ???????#### #????"s ????? | | ??????## #????"t